{"text_format":"2","workbook":"xlsx","n_sheets":1,"sheets":["Runbook"],"not_rendered":{"charts":0,"images":0,"macros":0,"external_links":0,"defined_names":0,"comments":0,"pivot_tables":0},"unopened":[],"bounds":{"document_bytes":16777216,"sheet_cells":100000,"run_cost":"one","rows_first":2000,"rows_last":500,"rows_between":2000,"halvings":0,"cell_chars":16384,"cell_head_chars":4096},"cells_cut":0,"cells_raw":0,"read":"whole","date_system":"1900"}

{"sheet":"Runbook","index":0,"n_rows":88,"n_cols":6,"rows_kept":88,"cut":false,"hidden":false,"merged":[]}
["Code Promotion Step","Package Group Name","Package Item",null,"Task","Code Promotion Step"]
["01 - Transport ADM Configuration","ADM Configuration",null,null,"Compare Promote Package Group",{"$f":"\"Execute Comparison for Package Group '\"&B2&\"'\"","v":"Execute Comparison for Package Group 'ADM Configuration'"}]
["01 - Transport ADM Configuration","ADM Configuration","Console Configuration",null,"Review Promote Package Data Comparison Results",{"$f":"\"Review Package '\"&C3&\"' Data Comparison Results. Decide what to queue for Transport\"","v":"Review Package 'Console Configuration' Data Comparison Results. Decide what to queue for Transport"}]
["01 - Transport ADM Configuration","ADM Configuration","Transform Configuration",null,"Review Promote Package Data Comparison Results","Review Package 'Transform Configuration' Data Comparison Results. Decide what to queue for Transport"]
["01 - Transport ADM Configuration","ADM Configuration",null,null,"Submit Promote Package Group for Approval",{"$f":"\"Request Approval for Package Group '\"&B5&\"'\"","v":"Request Approval for Package Group 'ADM Configuration'"}]
["01 - Transport ADM Configuration","ADM Configuration",null,null,"Approve Promote Package Group",{"$f":"\"Approve Package Group '\"&B6&\"'\"","v":"Approve Package Group 'ADM Configuration'"}]
["01 - Transport ADM Configuration","ADM Configuration","Console Configuration",10.0,"Transport Promote Package",{"$f":"\"Transport Package '\"&C7&\"'\"","v":"Transport Package 'Console Configuration'"}]
["01 - Transport ADM Configuration","ADM Configuration","Transform Configuration",20.0,"Transport Promote Package","Transport Package 'Transform Configuration'"]
["02 - Transport ADM Security Roles","ADM Security Roles",null,null,"Compare Promote Package Group",{"$f":"\"Execute Comparison for Package Group '\"&B9&\"'\"","v":"Execute Comparison for Package Group 'ADM Security Roles'"}]
["02 - Transport ADM Security Roles","ADM Security Roles","ADM Role {Role}",null,"Review Promote Package Data Comparison Results",{"$f":"\"Review Package '\"&C10&\"' Data Comparison Results. Decide what to queue for Transport\"","v":"Review Package 'ADM Role {Role}' Data Comparison Results. Decide what to queue for Transport"}]
["02 - Transport ADM Security Roles","ADM Security Roles",null,null,"Submit Promote Package Group for Approval",{"$f":"\"Request Approval for Package Group '\"&B11&\"'\"","v":"Request Approval for Package Group 'ADM Security Roles'"}]
["02 - Transport ADM Security Roles","ADM Security Roles",null,null,"Approve Promote Package Group",{"$f":"\"Approve Package Group '\"&B12&\"'\"","v":"Approve Package Group 'ADM Security Roles'"}]
["02 - Transport ADM Security Roles","ADM Security Roles","ADM Role {Role}",null,"Transport Promote Package",{"$f":"\"Transport Package '\"&C13&\"'\"","v":"Transport Package 'ADM Role {Role}'"}]
["03 - Transport Collect Target Source","Collect {Target} {Source}",null,10.0,"Compare Promote Package Group",{"$f":"\"Execute Comparison for Package Group '\"&B14&\"'\"","v":"Execute Comparison for Package Group 'Collect {Target} {Source}'"}]
["03 - Transport Collect Target Source","Collect {Target} {Source}","Collect {Target} {Source}",null,"Review Promote Package Data Comparison Results",{"$f":"\"Review Package '\"&C15&\"' Data Comparison Results. Decide what to queue for Transport\"","v":"Review Package 'Collect {Target} {Source}' Data Comparison Results. Decide what to queue for Transport"}]
["03 - Transport Collect Target Source","Collect {Target} {Source}",null,null,"Submit Promote Package Group for Approval",{"$f":"\"Request Approval for Package Group '\"&B16&\"'\"","v":"Request Approval for Package Group 'Collect {Target} {Source}'"}]
["03 - Transport Collect Target Source","Collect {Target} {Source}",null,null,"Approve Promote Package Group",{"$f":"\"Approve Package Group '\"&B17&\"'\"","v":"Approve Package Group 'Collect {Target} {Source}'"}]
["03 - Transport Collect Target Source","Collect {Target} {Source}","Collect {Target} {Source}",null,"Transport Promote Package",{"$f":"\"Transport Package '\"&C18&\"'\"","v":"Transport Package 'Collect {Target} {Source}'"}]
["04 - Transport ADM Wave Structure","ADM {Wave} Wave Structure",null,null,"Compare Promote Package Group",{"$f":"\"Execute Comparison for Package Group '\"&B19&\"'\"","v":"Execute Comparison for Package Group 'ADM {Wave} Wave Structure'"}]
["04 - Transport ADM Wave Structure","ADM {Wave} Wave Structure","Application Data Sources",null,"Review Promote Package Data Comparison Results",{"$f":"\"Review Package '\"&C20&\"' Data Comparison Results. Decide what to queue for Transport\"","v":"Review Package 'Application Data Sources' Data Comparison Results. Decide what to queue for Transport"}]
["04 - Transport ADM Wave Structure","ADM {Wave} Wave Structure","Source Data Sources",null,"Review Promote Package Data Comparison Results","Review Package 'Source Data Sources' Data Comparison Results. Decide what to queue for Transport"]
["04 - Transport ADM Wave Structure","ADM {Wave} Wave Structure","Target Data Sources",null,"Review Promote Package Data Comparison Results","Review Package 'Target Data Sources' Data Comparison Results. Decide what to queue for Transport"]
["04 - Transport ADM Wave Structure","ADM {Wave} Wave Structure","Migration Object Data Sources",null,"Review Promote Package Data Comparison Results","Review Package 'Migration Object Data Sources' Data Comparison Results. Decide what to queue for Transport"]
["04 - Transport ADM Wave Structure","ADM {Wave} Wave Structure","Data Services Data Sources",null,"Review Promote Package Data Comparison Results","Review Package 'Data Services Data Sources' Data Comparison Results. Decide what to queue for Transport"]
["04 - Transport ADM Wave Structure","ADM {Wave} Wave Structure","Wave Structure",null,"Review Promote Package Data Comparison Results","Review Package 'Wave Structure' Data Comparison Results. Decide what to queue for Transport"]
["04 - Transport ADM Wave Structure","ADM {Wave} Wave Structure",null,null,"Submit Promote Package Group for Approval",{"$f":"\"Request Approval for Package Group '\"&B26&\"'\"","v":"Request Approval for Package Group 'ADM {Wave} Wave Structure'"}]
["04 - Transport ADM Wave Structure","ADM {Wave} Wave Structure",null,null,"Approve Promote Package Group",{"$f":"\"Approve Package Group '\"&B27&\"'\"","v":"Approve Package Group 'ADM {Wave} Wave Structure'"}]
["04 - Transport ADM Wave Structure","ADM {Wave} Wave Structure","Source Data Sources",null,"Create Migration Databases",{"$f":"\"Create '\"&C28&\"' Databases\"","v":"Create 'Source Data Sources' Databases"}]
["04 - Transport ADM Wave Structure","ADM {Wave} Wave Structure","Target Data Sources",null,"Create Migration Databases","Create 'Target Data Sources' Databases"]
["04 - Transport ADM Wave Structure","ADM {Wave} Wave Structure","Migration Object Data Sources",null,"Create Migration Databases","Create 'Migration Object Data Sources' Databases"]
["04 - Transport ADM Wave Structure","ADM {Wave} Wave Structure","Data Services Data Sources",null,"Create Migration Databases","Create 'Data Services Data Sources' Databases"]
["04 - Transport ADM Wave Structure","ADM {Wave} Wave Structure","Application Data Sources",10.0,"Transport Promote Package",{"$f":"\"Transport Package '\"&C32&\"'\"","v":"Transport Package 'Application Data Sources'"}]
["04 - Transport ADM Wave Structure","ADM {Wave} Wave Structure","Source Data Sources",20.0,"Transport Promote Package","Transport Package 'Source Data Sources'"]
["04 - Transport ADM Wave Structure","ADM {Wave} Wave Structure","Target Data Sources",30.0,"Transport Promote Package","Transport Package 'Target Data Sources'"]
["04 - Transport ADM Wave Structure","ADM {Wave} Wave Structure","Migration Object Data Sources",40.0,"Transport Promote Package","Transport Package 'Migration Object Data Sources'"]
["04 - Transport ADM Wave Structure","ADM {Wave} Wave Structure","Data Services Data Sources",50.0,"Transport Promote Package","Transport Package 'Data Services Data Sources'"]
["04 - Transport ADM Wave Structure","ADM {Wave} Wave Structure","Wave Structure",60.0,"Transport Promote Package","Transport Package 'Wave Structure'"]
["04 - Transport ADM Wave Structure","ADM {Wave} Wave Structure","Application Data Sources",null,"Update Data Source Connection Details",{"$f":"\"Update '\"&C38&\"' Data Source Registry connection details in destination system\"","v":"Update 'Application Data Sources' Data Source Registry connection details in destination system"}]
["04 - Transport ADM Wave Structure","ADM {Wave} Wave Structure","Source Data Sources",null,"Update Data Source Connection Details","Update 'Source Data Sources' Data Source Registry connection details in destination system"]
["04 - Transport ADM Wave Structure","ADM {Wave} Wave Structure","Target Data Sources",null,"Update Data Source Connection Details","Update 'Target Data Sources' Data Source Registry connection details in destination system"]
["04 - Transport ADM Wave Structure","ADM {Wave} Wave Structure","Migration Object Data Sources",null,"Update Data Source Connection Details","Update 'Migration Object Data Sources' Data Source Registry connection details in destination system"]
["04 - Transport ADM Wave Structure","ADM {Wave} Wave Structure","Data Services Data Sources",99.0,"Update Data Source Connection Details","Update 'Data Services Data Sources' Data Source Registry connection details in destination system"]
["05 - Transport ADM Wave Value Mapping","ADM {Wave} Wave Value Mapping","Wave Value Mapping",10.0,"Compare Promote Package Group",{"$f":"\"Execute Comparison for Package Group '\"&B43&\"'\"","v":"Execute Comparison for Package Group 'ADM {Wave} Wave Value Mapping'"}]
["05 - Transport ADM Wave Value Mapping","ADM {Wave} Wave Value Mapping","Wave Value Mapping",null,"Review Promote Package Data Comparison Results",{"$f":"\"Review Package '\"&C44&\"' Data Comparison Results. Decide what to queue for Transport\"","v":"Review Package 'Wave Value Mapping' Data Comparison Results. Decide what to queue for Transport"}]
["05 - Transport ADM Wave Value Mapping","ADM {Wave} Wave Value Mapping","Wave Value Mapping",null,"Submit Promote Package Group for Approval",{"$f":"\"Request Approval for Package Group '\"&B45&\"'\"","v":"Request Approval for Package Group 'ADM {Wave} Wave Value Mapping'"}]
["05 - Transport ADM Wave Value Mapping","ADM {Wave} Wave Value Mapping","Wave Value Mapping",null,"Approve Promote Package Group",{"$f":"\"Approve Package Group '\"&B46&\"'\"","v":"Approve Package Group 'ADM {Wave} Wave Value Mapping'"}]
["05 - Transport ADM Wave Value Mapping","ADM {Wave} Wave Value Mapping","Wave Value Mapping",null,"Transport Promote Package",{"$f":"\"Transport Package '\"&C47&\"'\"","v":"Transport Package 'Wave Value Mapping'"}]
["06 - Transport ADM Wave - Process Area - Object","ADM {Wave} - {Process Area} - {Object}",null,null,"Compare Promote Package Group",{"$f":"\"Execute Comparison for Package Group '\"&B48&\"'\"","v":"Execute Comparison for Package Group 'ADM {Wave} - {Process Area} - {Object}'"}]
["06 - Transport ADM Wave - Process Area - Object","ADM {Wave} - {Process Area} - {Object}","Console - Target Table",null,"Review Promote Package Data Comparison Results",{"$f":"\"Review Package '\"&C49&\"' Data Comparison Results. Decide what to queue for Transport\"","v":"Review Package 'Console - Target Table' Data Comparison Results. Decide what to queue for Transport"}]
["06 - Transport ADM Wave - Process Area - Object","ADM {Wave} - {Process Area} - {Object}","Console - Target Table",null,"Review Promote Package SQL Comparison Results",{"$f":"\"Review Package '\"&C50&\"' SQL Comparison Results. Decide what to queue for Transport\"","v":"Review Package 'Console - Target Table' SQL Comparison Results. Decide what to queue for Transport"}]
["06 - Transport ADM Wave - Process Area - Object","ADM {Wave} - {Process Area} - {Object}","Transform - Target Source Table",null,"Review Promote Package Data Comparison Results",{"$f":"\"Review Package '\"&C51&\"' Data Comparison Results. Decide what to queue for Transport\"","v":"Review Package 'Transform - Target Source Table' Data Comparison Results. Decide what to queue for Transport"}]
["06 - Transport ADM Wave - Process Area - Object","ADM {Wave} - {Process Area} - {Object}","Transform - Target Source Table",null,"Review Promote Package SQL Comparison Results",{"$f":"\"Review Package '\"&C52&\"' SQL Comparison Results. Decide what to queue for Transport\"","v":"Review Package 'Transform - Target Source Table' SQL Comparison Results. Decide what to queue for Transport"}]
["06 - Transport ADM Wave - Process Area - Object","ADM {Wave} - {Process Area} - {Object}","Transform - Target Source Report",null,"Review Promote Package Data Comparison Results",{"$f":"\"Review Package '\"&C53&\"' Data Comparison Results. Decide what to queue for Transport\"","v":"Review Package 'Transform - Target Source Report' Data Comparison Results. Decide what to queue for Transport"}]
["06 - Transport ADM Wave - Process Area - Object","ADM {Wave} - {Process Area} - {Object}","Transform - Target Source Report",null,"Review Promote Package SQL Comparison Results",{"$f":"\"Review Package '\"&C54&\"' SQL Comparison Results. Decide what to queue for Transport\"","v":"Review Package 'Transform - Target Source Report' SQL Comparison Results. Decide what to queue for Transport"}]
["06 - Transport ADM Wave - Process Area - Object","ADM {Wave} - {Process Area} - {Object}","Transform - Target Source Rule",null,"Review Promote Package Data Comparison Results",{"$f":"\"Review Package '\"&C55&\"' Data Comparison Results. Decide what to queue for Transport\"","v":"Review Package 'Transform - Target Source Rule' Data Comparison Results. Decide what to queue for Transport"}]
["06 - Transport ADM Wave - Process Area - Object","ADM {Wave} - {Process Area} - {Object}","Transform - Target Source Rule",null,"Review Promote Package SQL Comparison Results",{"$f":"\"Review Package '\"&C56&\"' SQL Comparison Results. Decide what to queue for Transport\"","v":"Review Package 'Transform - Target Source Rule' SQL Comparison Results. Decide what to queue for Transport"}]
["06 - Transport ADM Wave - Process Area - Object","ADM {Wave} - {Process Area} - {Object}","Transform - Target Rule",null,"Review Promote Package Data Comparison Results",{"$f":"\"Review Package '\"&C57&\"' Data Comparison Results. Decide what to queue for Transport\"","v":"Review Package 'Transform - Target Rule' Data Comparison Results. Decide what to queue for Transport"}]
["06 - Transport ADM Wave - Process Area - Object","ADM {Wave} - {Process Area} - {Object}","Transform - Target Rule",null,"Review Promote Package SQL Comparison Results",{"$f":"\"Review Package '\"&C58&\"' SQL Comparison Results. Decide what to queue for Transport\"","v":"Review Package 'Transform - Target Rule' SQL Comparison Results. Decide what to queue for Transport"}]
["06 - Transport ADM Wave - Process Area - Object","ADM {Wave} - {Process Area} - {Object}","Transform - Target Report",null,"Review Promote Package Data Comparison Results",{"$f":"\"Review Package '\"&C59&\"' Data Comparison Results. Decide what to queue for Transport\"","v":"Review Package 'Transform - Target Report' Data Comparison Results. Decide what to queue for Transport"}]
["06 - Transport ADM Wave - Process Area - Object","ADM {Wave} - {Process Area} - {Object}","Transform - Target Report",null,"Review Promote Package SQL Comparison Results",{"$f":"\"Review Package '\"&C60&\"' SQL Comparison Results. Decide what to queue for Transport\"","v":"Review Package 'Transform - Target Report' SQL Comparison Results. Decide what to queue for Transport"}]
["06 - Transport ADM Wave - Process Area - Object","ADM {Wave} - {Process Area} - {Object}","Transform - Target Export",null,"Review Promote Package Data Comparison Results",{"$f":"\"Review Package '\"&C61&\"' Data Comparison Results. Decide what to queue for Transport\"","v":"Review Package 'Transform - Target Export' Data Comparison Results. Decide what to queue for Transport"}]
["06 - Transport ADM Wave - Process Area - Object","ADM {Wave} - {Process Area} - {Object}","Transform - Target Export",null,"Review Promote Package SQL Comparison Results",{"$f":"\"Review Package '\"&C62&\"' SQL Comparison Results. Decide what to queue for Transport\"","v":"Review Package 'Transform - Target Export' SQL Comparison Results. Decide what to queue for Transport"}]
["06 - Transport ADM Wave - Process Area - Object","ADM {Wave} - {Process Area} - {Object}","Assemble - Package",null,"Review Promote Package Data Comparison Results",{"$f":"\"Review Package '\"&C63&\"' Data Comparison Results. Decide what to queue for Transport\"","v":"Review Package 'Assemble - Package' Data Comparison Results. Decide what to queue for Transport"}]
["06 - Transport ADM Wave - Process Area - Object","ADM {Wave} - {Process Area} - {Object}","Assemble - Package",null,"Review Promote Package SQL Comparison Results",{"$f":"\"Review Package '\"&C64&\"' SQL Comparison Results. Decide what to queue for Transport\"","v":"Review Package 'Assemble - Package' SQL Comparison Results. Decide what to queue for Transport"}]
["06 - Transport ADM Wave - Process Area - Object","ADM {Wave} - {Process Area} - {Object}",null,null,"Submit Promote Package Group for Approval",{"$f":"\"Request Approval for Package Group '\"&B65&\"'\"","v":"Request Approval for Package Group 'ADM {Wave} - {Process Area} - {Object}'"}]
["06 - Transport ADM Wave - Process Area - Object","ADM {Wave} - {Process Area} - {Object}",null,null,"Approve Promote Package Group",{"$f":"\"Approve Package Group '\"&B66&\"'\"","v":"Approve Package Group 'ADM {Wave} - {Process Area} - {Object}'"}]
["06 - Transport ADM Wave - Process Area - Object","ADM {Wave} - {Process Area} - {Object}","Console - Target Table",20.0,"Transport Promote Package",{"$f":"\"Transport Package '\"&C67&\"'\"","v":"Transport Package 'Console - Target Table'"}]
["06 - Transport ADM Wave - Process Area - Object","ADM {Wave} - {Process Area} - {Object}","Transform - Target Source Table",30.0,"Transport Promote Package","Transport Package 'Transform - Target Source Table'"]
["06 - Transport ADM Wave - Process Area - Object","ADM {Wave} - {Process Area} - {Object}","Transform - Target Source Report",40.0,"Transport Promote Package","Transport Package 'Transform - Target Source Report'"]
["06 - Transport ADM Wave - Process Area - Object","ADM {Wave} - {Process Area} - {Object}","Transform - Target Source Rule",50.0,"Transport Promote Package","Transport Package 'Transform - Target Source Rule'"]
["06 - Transport ADM Wave - Process Area - Object","ADM {Wave} - {Process Area} - {Object}","Transform - Target Rule",60.0,"Transport Promote Package","Transport Package 'Transform - Target Rule'"]
["06 - Transport ADM Wave - Process Area - Object","ADM {Wave} - {Process Area} - {Object}","Transform - Target Report",70.0,"Transport Promote Package","Transport Package 'Transform - Target Report'"]
["06 - Transport ADM Wave - Process Area - Object","ADM {Wave} - {Process Area} - {Object}","Transform - Target Export",80.0,"Transport Promote Package","Transport Package 'Transform - Target Export'"]
["06 - Transport ADM Wave - Process Area - Object","ADM {Wave} - {Process Area} - {Object}","Assemble - Package",90.0,"Transport Promote Package","Transport Package 'Assemble - Package'"]
["07 - Transport Construction Pages","Construction Page ",null,null,"Build CTS Archive","Build 'Construction Page' CTS Packing List"]
["07 - Transport Construction Pages","Construction Page ",null,null,"Export CTS Archive to Destination Stewardship Tier Instance","Export 'Construction Page' CTS Package"]
["07 - Transport Construction Pages","Construction Page ",null,null,"Install CTS Archive on Destination Stewardship Tier Instance","Install 'Construction Page' CTS Package"]
["08 - Transport Integrate Category","Integrate {Category} Category",null,null,"Build CTS Archive","Build 'Integrate {Category} Category' CTS Packing List"]
["08 - Transport Integrate Category","Integrate {Category} Category",null,null,null,"Script 'Integrate {Category} Category' SQL Tables"]
["08 - Transport Integrate Category","Integrate {Category} Category",null,null,"Export CTS Archive to Destination Stewardship Tier Instance","Export 'Integrate {Category} Category' CTS Package"]
["08 - Transport Integrate Category","Integrate {Category} Category",null,null,null,"Create 'Integrate {Category} Category' SQL Tables"]
["08 - Transport Integrate Category","Integrate {Category} Category",null,null,"Install CTS Archive on Destination Stewardship Tier Instance","Install 'Construction Page' CTS Package"]
["09 - Export SAP Data Services Jobs"]
["09 - Import SAP Data Services Jobs"]
["09 - Export LSMW"]
["09 - Import LSMW"]
["09 - Export Migration Cockpit"]
["09 - Import Migration Cockpit"]